Cogmind - Beta 16 @@@ ROGUE MODE // 2025.11.16 @ 19:24:06 Player: jes Result: Destroyed by G-47 Trooper with Particle Gun Performance ------------- Evolutions (0) 0 Regions Visited (1) 200 Robots Destroyed (7) 35 Value Destroyed (161) 161 Prototype IDs (0) 0 Alien Tech Used (0) 0 Bonus (0) 0 TOTAL SCORE: 396 Bonus ------- None Cogmind --------- Core Integrity 0/250 Matter 240/300 Energy 100/100 System Corruption 0% Temperature Cool (9) Movement Core (50) Location -10/Materials Parts ------- > --- POWER (1) -------- (None) > --- PROPULSION (2) --- Flight Unit > --- UTILITY (2) ------ Visual Processing Unit Targeting Computer > --- WEAPON (2) ------- Light Assault Rifle Mining Claw > --- INVENTORY (5) ---- Aluminum Leg Flight Unit Flight Unit Sensor Array Peak State ------------ > --- POWER ------------ Light Ion Engine > --- PROPULSION ------- Flight Unit Flight Unit > --- UTILITY ---------- Visual Processing Unit Targeting Computer > --- WEAPON ----------- Light Assault Rifle Mining Claw > --- INVENTORY -------- Ion Engine Aluminum Leg Flight Unit EM Pulse Gun Light Assault Rifle [Rating: 8] Favorites ----------- Power Light Ion Engine Engine Light Ion Engine Propulsion Flight Unit Treads Light Treads Flight Unit Flight Unit Utility Visual Processing Unit Processor Visual Processing Unit Weapon Light Assault Rifle Ballistic Gun Light Assault Rifle Slashing Weapon Mining Claw Build | -11 -10 ------- Run | Yrd Mat Slots Evolved . | . . Power . | . . Propulsion . | . . Utility . | . . Weapon . | . . Parts Attached 12 | 4 8 Power 1 | . 1 Engine 1 | . 1 Core . | . . Reactor . | . . Propulsion 5 | 2 3 Treads 2 | 2 . Leg . | . . Wheel . | . . Hover . | . . Flight 3 | . 3 Utility 2 | . 2 Device . | . . Storage . | . . Processor 2 | . 2 Hackware . | . . Protection . | . . Artifact . | . . Weapon 4 | 2 2 Energy Gun . | . . Energy Cannon . | . . Ballistic Gun 3 | 2 1 Ballistic Cannon . | . . Launcher . | . . Special Weapon . | . . Impact Weapon . | . . Slashing Weapon 1 | . 1 Piercing Weapon . | . . Special Melee Weapon . | . . Unidentified Prototypes . | . . Parts Lost 4 | . 4 Power 1 | . 1 Propulsion 2 | . 2 Utility . | . . Weapon 1 | . 1 Highest Loss Streak 3 | . 3 To Critical Strikes . | . . Average Backups 4 | 1 4 Power . | . . Propulsion 2 | . 2 Utility . | . . Weapon 1 | . 1 Tool/Special . | . . Unused Backups 7 | . 7 Power 1 | . 1 Propulsion 4 | . 4 Utility 1 | . 1 Weapon 1 | . 1 Tool/Special . | . . Average Slot Usage (%) 80 | . 80 Engine 5 | . 5 Treads 12 | . 12 Flight 14 | . 14 Processor 18 | . 18 Ballistic Gun 20 | . 20 Slashing Weapon 8 | . 8 Peak Build Rating 8 | 4 8 Average Rating 6 | 3 6 On Entrance 2 | . 4 Avg Prop Armor Cover (%) 22 | 28 21 Naked Turns . | . . Heaviest Build 6 | 3 6 Greatest Support 20 | 20 8 Greatest Overweight (x) 1 | . 1 Average Overweight (x) . | . . Largest Inventory Capacity 5 | 5 5 Average Capacity 5 | 5 5 Most Carried 5 | 4 5 Average Carried 4 | 1 4 Final Capacity 5 | 5 5 Final Carried 4 | 4 4 Class Distribution -------------------- 70% | Mutant 29% | Scavenger-Mutant Dominant Class ---------------- Mutant | -10/Materials Resources | -11 -10 ----------- Run | Yrd Mat Matter Collected 346 | 194 152 Remotely . | . . Salvage Created 196 | . 196 Parts 16 | . 16 Haulers Intercepted . | . . Recyclers Shooed . | . . Parts Field Recycled . | . . Retrieved Matter . | . . Parts Self-Destructed . | . . Prevented . | . . Parts Restored . | . . Kills | -11 -10 ------- Run | Yrd Mat Combat Hostiles Destroyed 6 | . 6 Melee 4 | . 4 Guns 2 | . 2 Classes Destroyed 3 | . 3 Watcher 1 | . 1 Swarmer 3 | . 3 Grunt 3 | . 3 Best Kill Streak 5 | . 5 Combat Bots Only 5 | . 5 Max Kills in Single Turn 1 | . 1 Gunslinging . | . . Exploded . | . . Melee 1 | . 1 Uniques/NPCs Destroyed . | . . Combat | -11 -10 -------- Run | Yrd Mat Hostile Shots Fired 88 | . 88 Missed 14 | . 14 Hits 74 | . 74 Projectile 74 | . 74 Critical Strikes 3 | . 3 Damage Taken 751 | . 751 Core 257 | . 257 Absorbed by Shields . | . . Core Remaining (%) 100 | 100 . Volleys Fired 24 | . 24 Largest 2 | . 2 Hottest 40 | . 40 Shots Fired 40 | . 40 Gun 40 | . 40 Cannon . | . . Launcher . | . . Special . | . . Kinetic 40 | . 40 Thermal . | . . Explosive . | . . Electromagnetic . | . . Robot Hit Streak 11 | . 11 Robot Miss Streak 3 | . 3 Penetration Max . | . . Secondary Targets . | . . Shots Hit Robots 36 | . 36 Core Hits 15 | . 15 Critical Kills . | . . Critical Parts Destroyed . | . . Critical Strikes . | . . Melee Attacks 30 | . 30 Impact . | . . Slashing 30 | . 30 Piercing . | . . Sneak Attacks 1 | . 1 Combat Hostiles . | . . Follow-up Attacks . | . . Damage Inflicted 462 | . 462 Guns 217 | . 217 Cannons . | . . Explosions . | . . Melee 245 | . 245 Ramming . | . . Kinetic 217 | . 217 Thermal . | . . Explosive . | . . Electromagnetic . | . . Impact . | . . Slashing 245 | . 245 Piercing . | . . Highest Corruption . | . . Average Corruption . | . . Corruption Purged . | . . Corruption Blocked . | . . Overload Shots . | . . Overflow Damage 1 | . 1 Projectiles . | . . Explosions . | . . Melee 1 | . 1 Knockbacks . | . . Impact . | . . Kinetic . | . . Secondary . | . . Self-Inflicted Damage . | . . Shots . | . . Rammed . | . . Targets Rammed . | . . Kicked . | . . Crushed . | . . Highest Temperature 10 | . 10 Average Temperature 5 | . 5 Received Heat Transfer 261 | . 261 Siege Activations . | . . Martial Activations . | . . Shielding Activations . | . . Robots Disrupted . | . . Combat Hostiles . | . . Robots Corrupted . | . . Combat Hostiles . | . . Parts Fried . | . . Impact Corruptions . | . . Robots Melted . | . . Combat Hostiles . | . . Parts Melted . | . . Heat Transferred . | . . Parts Sabotaged . | . . Parts Stolen . | . . Parts Stripped . | . . Power Chain Reactions . | . . Alert | -11 -10 ------- Run | Yrd Mat Maximum Alert Level . | . . Low Security (%) 100 | 100 100 Level 1 . | . . Level 2 . | . . Level 3 . | . . Level 4 . | . . Level 5 . | . . High Security . | . . Max Security . | . . Peak Influence 91 | . 91 Initial . | . . Average 33 | . 37 Influence Increases 207 | . 207 Destroy 0b10 Robot/C 120 | . 120 Destroy 0b10 Robot/NC 5 | . 5 Destroy Leader 22 | . 22 Successful Hack 9 | . 9 Destroy Structure 6 | . 6 Partial Spotted 45 | . 45 Influence Decreases 189 | . 189 Time Decay 149 | . 149 Lost Part 40 | . 40 Squads Dispatched . | . . Investigation . | . . Extermination . | . . Reinforcement . | . . Assault . | . . Garrison . | . . Intercept . | . . Searches Triggered . | . . Construction Impeded . | . . Haulers Reinforced . | . . Active Scanning Responses . | . . Cargo Convoy Interrupts . | . . Stealth | -11 -10 --------- Run | Yrd Mat Distress Signals 1 | . 1 Communications Jammed . | . . Distress Signals . | . . Times Spotted 13 | . 13 Peak Tracking Total 6 | . 6 Tactical Retreats . | . . Traps | -11 -10 ------- Run | Yrd Mat Traps Triggered . | . . Indirectly . | . . Trap Hack Attempts . | . . Triggered . | . . Disarmed . | . . Reprogrammed . | . . Reused . | . . Traps Extracted . | . . Installed . | . . Triggered . | . . Machines | -11 -10 ---------- Run | Yrd Mat Machines Disabled . | . . Max in Single Turn . | . . Machines Repaired . | . . Machines Dismantled . | . . Machines Sabotaged . | . . Overloaded Fab Kills . | . . Hacking | -11 -10 --------- Run | Yrd Mat Machines Accessed 4 | . 4 Terminals 3 | . 3 Fabricators . | . . Repair Stations . | . . Recycling Units 1 | . 1 Scanalyzers . | . . Garrison Access . | . . Total Hacks 16 | . 16 Successful 7 | . 7 Failed 9 | . 9 Catastrophic 3 | . 3 Database Lockouts . | . . Manual 7 | . 7 Terminals 8 | . 8 Fabricators . | . . Repair Stations . | . . Recycling Units 8 | . 8 Scanalyzers . | . . Garrison Access . | . . Terminal Hacks 3 | . 3 Terminal Index 1 | . 1 Alert Level 1 | . 1 Zone Layout 1 | . 1 Fabricator Hacks . | . . Repair Station Hacks . | . . Recycling Unit Hacks 2 | . 2 Report Inventory 1 | . 1 Retrieve Components 1 | . 1 Scanalyzer . | . . Garrison Access Hacks . | . . Unauthorized Hacks 2 | . 2 Terminals . | . . Fabricators . | . . Repair Stations . | . . Recycling Units 2 | . 2 Reject 1 | . 1 Recyclers 1 | . 1 Scanalyzers . | . . Garrison Access . | . . Data Cores Recovered . | . . Used . | . . Hacking Detections 3 | . 3 Full Trace Events . | . . Feedback Events . | . . Feedback Blocked . | . . Robot Schematics Acquired . | . . Robots Built . | . . Authchips . | . . Time . | . . Total Robot Build Rating . | . . Part Schematics Acquired . | . . Parts Built . | . . Authchips . | . . Time . | . . Total Part Build Rating . | . . Part Studies Acquired . | . . Parts Repaired . | . . Time . | . . Parts Recycled . | . . Recycled Matter . | . . Retrieved Matter . | . . Retrieved Components 3 | . 3 Parts Scanalyzed . | . . Part Schematics Acquired . | . . Parts Damaged . | . . Bothacking | -11 -10 ------------ Run | Yrd Mat Used RIF Installer . | . . Robots Hacked . | . . Non-combat . | . . Combat . | . . Robot Hacks Applied . | . . Relay Couplers Released . | . . Fabnet Peak Effective % . | . . Robots Rewired . | . . Allies Hacked . | . . Hacks Repelled . | . . Allies | -11 -10 -------- Run | Yrd Mat Total Allies . | . . Largest Group . | . . Highest-Rated Group . | . . Highest-Rated Ally . | . . Total Orders . | . . Ally Attacks . | . . Total Damage . | . . Kills . | . . Allies Corrupted . | . . Allies Melted . | . . Intel | -11 -10 ------- Run | Yrd Mat Active Infowar (turns) 302 | . 302 Optics 302 | . 302 Robot Analysis Total . | . . Derelict Logs Recovered . | . . Drone Launches . | . . Drone Recoveries . | . . Exploration | -11 -10 ------------- Run | Yrd Mat Turns Passed 451 | 39 412 Spaces Moved 498 | 53 445 Core 179 | 51 128 Treads 2 | 2 . Legs . | . . Wheels . | . . Hover . | . . Flight 317 | . 317 Fastest Speed 37 | 50 37 Average Speed 47 | 54 46 Slowest Speed 160 | 160 100 Overloaded Moves . | . . Propulsion Burnouts . | . . Robots Hopped . | . . Potential Cave-ins . | . . Cave-ins Triggered . | . . Exploration Rate (%) 35 | 3 67 Regions Visited 1 Branch Regions . Pre-discovered Areas . | . . Known Exits Taken . | . . Unknown Exits Taken 1 | 1 . Scrap Searched . | . . Spaces Dug 6 | . 6 Terrain Destroyed 6 | . 6 Melee 6 | . 6 Projectile . | . . AOE . | . . Terrain Rammed . | . . Walls Destroyed . | . . Machines Disabled . | . . Actions | -11 -10 --------- Run | Yrd Mat Total 616 | 60 556 Wait 30 | . 30 Move 497 | 52 445 Hop . | . . Pick Up 9 | 4 5 Fast Attach 10 | 4 6 Attach 1 | . 1 Detach 1 | . 1 Swap 7 | . 7 Drop 7 | . 7 Fire 24 | . 24 Melee 30 | . 30 Ram . | . . Kick . | . . Crush . | . . Escape Stasis . | . . Rewire . | . . Trap . | . . Miscellaneous . | . . Route ------- -11/Scrapyard -10/Materials (discovered 2 exits: [*Mat] / [*Min]) History --------- Turn | Location | Event 2 | -11/Scrapyard | Met Revision 17 11 | -11/Scrapyard | Discovered new exit (range 15) 40 | -11/Scrapyard | Entered Materials 141 | -10/Materials | Discovered new exit (range 15) 251 | -10/Materials | Core integrity fell below 50% 314 | -10/Materials | Discovered new exit (range 18) 435 | -10/Materials | Core integrity fell below 20% 452 | -10/Materials | Destroyed by G-47 Trooper with Particle Gun Last Messages --------------- 00332_ Dropped EM Pulse Gun. 00334_ Acquired Sensor Array. 00374_ Sneak attack on U-05 Engineer. 00374_ U-05 Engineer Wheel ripped off. 00379_ W-16 Scout sends out distress signal. 00396_ K-01 Serf collects debris. 00410_ Electrolysis Chamber disabled. 00425_ Lgt. Assault Rifle destroyed. 00427_ Flight Unit destroyed. 00430_ K-01 Serf cleans the Machine. 00432_ Critical hit (Burn: +37). 00434_ G-34 Mercenary destroyed. 00437_ K-01 Serf collects debris. 00438_ Critical hit (Burn: +37). 00439_ K-01 Serf collects debris. 00446_ Lgt. Ion Engine destroyed. 00448_ Critical hit (Burn: +37). 00448_ R-06 Scavenger collects Sml. Laser. 00449_ K-01 Serf collects debris. 00450_ K-01 Serf cleans the Machine. Map ----- +----------------------------------------------------+ | ?????????# """"" #??# """ ## ## !"" #??????? | | ?????????# """"" #??# """ ## ## !Y" #??????? | | ?????????# """"" #??# """ ## ## "" #??????? | | ?????????# #??# ## ## #??????? | | ?????????#########??# ## ## """ #??????? | | ????????????????????# ## ## """ #?###### | | ????????????????????# ## ## """ ###!!!!# | | ????????????????????############ ## ##! ! | | ???????????????????????????????# ## ## | | ???????????????????????????????# ######### # | | ???????????????????????????????# # | | ????????????????????#########??# # | | ????????????????????# #??# # | | ???????????????????## #??############### # | | ???????????????????# #???????# !## # | | ???????????????????## """ #???????# """ ## # | | ????????????????????#""""" #???????# """ ## # | | ????#???????????????#""""" #???????# """ ## | | ????# ??????????????#""""" #???????# ## | | ????# ????????????# """ #???????# """ ## | | ????# ?????????## #???????# """ ###+## | | ????# ????????# #???????# """ # | | ??### ??????## ######### # """ | | ??# ############/## ##+###### """ | | ??# g #??# """ | | ??# k @ < #??# | | ??# %r k #??# | | ??# ############/##" "##t #??###### | | ??# ??? ?????????# #" !"! "## #???????# | | ???????????????????# """ #"""""""## #???????# | | ??????????????????## "" !########## #???????# | | ??????????????????# """ #???????## ##??????# | | ??????????????????## #???????# ######## | | ???????????????????# """ #???????# | | ???????????????????# """ #???????# T | | ??????????????????## """ #???????# "" | | ??????????????????# ! #???????#= "T ! | | ??????????????????######## ##???????##### "" | | ?????????????????????????###????????????# | | ????????????????????????????????????????# | | ????????????????????????????????????????# | | ????????????????????????????????????????# | | ????????????????????????????????????????# """ | | ????????????????????????????????????????# """ | | ????????????????????????????????????????# """ | | ??????????????????????????????????????### """ | | ??????????????????????????????????????# | | ??????????????????????????????????????# | | ??????????????????????????????????????# | | ??????????????????????????????????????# | +----------------------------------------------------+ Best States ------------- Heat Dissipation 25 Energy Generation 10 Energy Capacity 125 Matter Stores 265 Matter Capacity 300 Sight Range 18 Terrain Scan Density 10 Evasion (%) 62 Targeting Accuracy 5 Recoil Reduction 1 Item Schematics ----------------- None Robot Schematics ------------------ None Fabricated ------------ Nothing Repaired ---------- Nothing Studied --------- None Alien Tech Used ----------------- None Achievements -------------- None Challenges ------------ None Game ------ Seed VoltaicSmartProjector Manual? 0 Play Time 00:15:45 Cumulative 102.0 hours Start 2025.11.16 @ 19:08:32 End 2025.11.16 @ 19:24:06 Sessions 1 Manual Loads 0 Difficulty Rogue Special Mode None Game No. 55 Rogue 55 Adventurer 0 Explorer 0 Win Type - Total 0 Types 0/0/0/0/0/0/0/0/0/0 Lore% 18 Gallery% 30 Achievement% 23 Wizard Run 0 Options --------- Layout 2 ASCII 1 Keyboard 1 Movement Vi Keybinds 0 Fullscreen 2 Font 32/Terminus Map View 50x44 Zoom Use 0% Tactical HUD 1 Map Filters NONE Filters NONE Steam 1 RUN: 229fa51f-e69b-40df-abfc-e9f6c7ffe1e2